bitfinex-derivatives/quotes_SOLF0:USTF0_20260316
["timestamp","ask_amount","ask_price","bid_price","bid_amount"]
[1773689379563,3.54909852,95.11,95.071,11.05772553]
[1773689380362,3.54909852,95.12,95.071,11.05772553]
[1773689380862,33.14,95.167,95.071,11.05772553]
[1773689380863,3.54909852,95.13,95.071,11.05772553]
[1773689381262,14.88538764,95.12,95.062,33.14]
[1773689381759,14.88538764,95.12,95.063,11.05772553]
[1773689382557,11.33628912,95.109,95.062,33.14]
[1773689383958,3.54909852,95.12,95.062,44.19772553]
[1773689384464,3.54909852,95.12,94.972,13.00935628]
[1773689384465,3.54909852,95.09,95.043,11.05772553]
[1773689384858,11.33628912,95.099,95.043,11.05772553]
[1773689385065,3.54909852,95.09,95.043,11.05772553]
[1773689385571,3.54909852,95.11,95.043,11.05772553]
[1773689385965,3.54909852,95.1,95.043,11.05772553]
[1773689387468,11.33628912,95.099,95.043,11.05772553]
[1773689387666,3.54909852,95.09,95.043,11.05772553]
[1773689389168,11.33628912,95.116,95.051,11.05772553]
[1773689389967,3.54909852,95.12,95.061,11.05772553]
[1773689390273,3.54909852,95.1,95.044,11.05772553]
[1773689391573,3.54909852,95.09,95.044,11.05772553]
[1773689392572,3.54909852,95.08,95.026,11.06957642]
[1773689392969,10.90315433,95.089,95.026,11.06957642]
[1773689395375,3.54909852,95.09,95.026,11.06957642]
[1773689395676,3.54909852,95.09,95.031,11.81289735]
[1773689396773,3.54054533,95.09,95.031,11.81289735]
[1773689397174,3.54054533,95.11,95.041,11.81289735]
[1773689397775,10.94797016,95.124,95.061,11.81289735]
[1773689397968,3.54054533,95.12,95.061,11.81289735]
[1773689398369,10.94797016,95.145,95.001,18.946]
[1773689398370,3.54054533,95.13,95.071,11.81289735]
[1773689400478,33.14,95.18,95.045,11.81289735]
[1773689400479,3.54054533,95.09,95.045,11.81289735]
[1773689400779,3.54054533,95.11,95.051,11.81289735]
[1773689401174,3.54054533,95.13,95.06,3.54054533]
[1773689401379,3.54054533,95.13,95.071,11.81289735]
[1773689402680,3.54054533,95.16,95.091,11.81289735]
[1773689402981,3.54054533,95.16,95.101,11.81289735]
[1773689403182,3.54054533,95.15,95.101,11.81289735]
[1773689403682,3.54054533,95.16,95.101,11.81289735]
[1773689403878,3.54054533,95.15,95.101,11.81289735]
[1773689404578,3.54054533,95.13,95.081,11.81289735]
[1773689405283,3.54054533,95.12,95.061,11.81289735]
[1773689405586,33.12,95.194,95.061,11.81289735]
[1773689405587,3.54054533,95.11,95.061,11.81289735]
[1773689405983,3.54054533,95.13,95.061,11.81289735]
[1773689406375,3.54054533,95.14,95.081,11.81289735]
[1773689407482,3.54054533,95.15,95.081,11.81289735]
[1773689407784,10.94797016,95.149,95.081,11.81289735]
[1773689407983,3.54054533,95.14,95.081,11.81289735]
[1773689409384,10.94797016,95.149,95.081,11.81289735]
[1773689409583,10.94797016,95.149,95.091,11.81289735]
[1773689409783,3.54054533,95.14,95.091,11.81289735]
[1773689412882,10.94797016,95.149,95.091,11.81289735]
[1773689413087,3.54054533,95.14,95.091,11.81289735]
[1773689413784,10.94797016,95.183,95.091,11.81289735]
[1773689413979,10.94797016,95.183,95.064,19.57216727]
[1773689413980,3.54054533,95.19,95.121,11.81289735]
[1773689414286,3.54054533,95.18,95.121,11.81289735]
[1773689414683,3.54054533,95.15,95.101,33.12]
[1773689414887,3.54054533,95.15,95.099,11.81289735]
[1773689415484,3.54054533,95.13,95.082,11.81289735]
[1773689416589,3.54054533,95.14,95.082,11.81289735]
[1773689416893,10.94797016,95.149,95.082,11.81289735]
[1773689421290,10.94797016,95.146,95.065,11.81289735]
[1773689423099,11.68227015,95.14,95.065,11.81289735]
[1773689423699,11.68227015,95.163,95.065,11.81289735]
[1773689423996,11.68227015,95.163,95.07,11.7016965]
[1773689424404,11.68227015,95.149,95.07,11.7016965]
[1773689433405,8.4215089,95.14,95.07,11.7016965]
[1773689433608,11.68227015,95.139,95.07,11.7016965]
[1773689433806,11.68227015,95.159,95.07,11.7016965]
[1773689434110,11.68227015,95.159,95.084,9.81279212]
[1773689434409,13.04023603,95.206,95.07,8.4215089]
[1773689434410,11.68227015,95.178,95.099,11.7016965]
[1773689434607,11.68227015,95.178,95.1,11.7016965]
[1773689437613,11.68227015,95.159,95.1,11.7016965]
[1773689437813,11.68227015,95.159,95.084,11.7016965]
[1773689438106,13.04023603,95.19,95.084,11.7016965]
[1773689438107,8.4215089,95.14,95.084,11.7016965]
[1773689438312,11.68227015,95.139,95.07,11.7016965]
[1773689441108,11.68227015,95.137,95.052,11.7016965]
[1773689441504,11.68227015,95.119,95.052,11.7016965]
[1773689441808,11.68227015,95.119,95.038,33.12]
[1773689442009,11.68227015,95.119,95.039,11.7016965]
[1773689443204,11.68227015,95.117,95.039,11.7016965]
[1773689443410,11.68227015,95.117,95.018,9.69238599]
[1773689443615,11.68227015,95.117,95.023,11.7016965]
[1773689444715,11.68227015,95.111,95.027,11.7016965]
[1773689444905,11.68227015,95.111,95.028,11.7016965]
[1773689445112,11.68227015,95.111,95.04,9.69238599]
[1773689445310,11.68227015,95.139,95.041,11.7016965]
[1773689445605,11.68227015,95.135,95.055,11.7016965]
[1773689445810,11.68227015,95.135,95.066,11.7016965]
[1773689448315,11.68227015,95.15,95.066,11.7016965]
[1773689449824,11.68227015,95.139,95.066,11.7016965]
[1773689450025,11.68227015,95.139,95.056,33.12]
[1773689450620,11.68227015,95.139,95.056,44.8216965]
[1773689451423,18.919,95.137,95.056,44.8216965]
[1773689451618,11.68227015,95.136,95.056,44.8216965]
[1773689452224,11.68227015,95.136,95.057,11.7016965]
[1773689452621,11.24955032,95.132,95.057,11.7016965]
[1773689452825,11.24955032,95.119,95.027,10.78963771]
[1773689453226,11.24955032,95.116,95.027,10.78963771]
[1773689461130,11.24955032,95.116,95.01,8.42871909]
[1773689461131,11.24955032,95.116,95.029,11.28843352]
[1773689461836,11.24955032,95.116,95.031,11.28843352]
[1773689462524,18.918,95.14,95.039,11.28843352]
[1773689462525,10.57358871,95.138,95.039,11.28843352]
[1773689463126,10.57358871,95.138,95.053,11.28843352]
[1773689463430,10.57358871,95.138,95.055,11.28843352]
[1773689465626,33.12,95.158,95.068,11.28843352]
[1773689465627,10.57358871,95.154,95.068,11.28843352]
[1773689465827,10.57358871,95.189,95.071,11.28843352]
[1773689466024,10.57358871,95.187,95.075,11.28843352]
[1773689466632,10.57358871,95.187,95.091,11.28843352]
[1773689466829,10.57358871,95.187,95.093,11.28843352]
[1773689467230,10.57358871,95.187,95.095,11.28843352]
[1773689469230,10.57358871,95.169,95.086,33.12]
[1773689469633,10.57358871,95.169,95.087,11.28843352]
[1773689470830,10.57358871,95.169,95.089,11.28843352]
[1773689482344,10.57358871,95.193,95.098,11.28843352]
[1773689482545,10.57358871,95.193,95.101,10.23434539]
[1773689482747,10.57358871,95.193,95.121,10.23434539]
[1773689483845,10.76759221,95.189,95.121,10.23434539]
[1773689484551,10.76759221,95.187,95.1,10.23434539]
[1773689485152,10.76759221,95.187,95.103,10.23434539]
[1773689486350,10.76759221,95.187,95.109,10.23434539]
[1773689488755,10.76759221,95.186,95.092,10.23434539]
[1773689489048,10.76759221,95.184,95.092,10.23434539]
[1773689490247,10.76759221,95.183,95.092,10.23434539]
[1773689490847,10.76759221,95.183,95.108,2.102]
[1773689491045,10.76759221,95.183,95.109,10.23434539]
[1773689491244,10.76759221,95.2,95.109,10.23434539]
[1773689495355,10.76759221,95.2,95.122,10.23434539]
[1773689496657,10.76759221,95.2,95.124,10.23434539]
[1773689497560,10.76759221,95.2,95.128,10.23434539]
[1773689499458,10.76759221,95.2,95.13,10.23434539]
[1773689501059,10.76759221,95.2,95.109,10.23434539]
[1773689501868,10.76759221,95.198,95.109,10.23434539]
[1773689502866,18.906,95.199,95.109,10.23434539]
[1773689502867,10.76759221,95.189,95.109,10.23434539]
[1773689506168,10.76759221,95.184,95.09,9.69238599]
[1773689506370,10.76759221,95.184,95.091,10.23434539]
[1773689507371,10.76759221,95.181,95.094,10.23434539]
[1773689507572,10.76759221,95.181,95.103,10.23434539]
[1773689507768,10.76759221,95.181,95.107,10.23434539]
[1773689507964,10.76759221,95.181,95.108,10.23434539]
[1773689508168,10.76759221,95.181,95.122,10.23434539]
[1773689508366,10.76759221,95.202,95.122,10.23434539]
[1773689509569,10.76759221,95.202,95.125,10.23434539]
[1773689510571,10.76759221,95.202,95.129,10.23434539]
[1773689511674,10.76759221,95.202,95.133,10.23434539]
[1773689511877,10.76759221,95.202,95.124,10.23434539]
[1773689515083,10.71584084,95.189,95.098,10.03257283]
[1773689516577,10.71584084,95.189,95.107,10.6699507]
[1773689517174,10.71584084,95.189,95.109,10.6699507]
[1773689517777,10.71584084,95.189,95.121,10.6699507]
[1773689520888,3.53437854,95.18,95.121,10.6699507]
[1773689521490,10.71584084,95.189,95.121,10.6699507]
[1773689521686,10.71584084,95.189,95.131,10.6699507]
[1773689521891,3.53437854,95.19,95.131,10.6699507]
[1773689522190,3.53437854,95.18,95.131,10.6699507]
[1773689522585,10.34524893,95.205,95.131,10.6699507]
[1773689522789,3.53437854,95.2,95.131,10.6699507]
[1773689523088,3.53437854,95.19,95.131,10.6699507]
[1773689523289,13.87962747,95.19,95.131,10.6699507]
[1773689523789,13.87962747,95.19,95.134,10.6699507]
[1773689523987,3.53437854,95.18,95.134,10.6699507]
[1773689524186,10.34524893,95.179,95.12,3.53437854]
[1773689524490,13.87962747,95.17,95.114,10.6699507]
[1773689524990,3.53437854,95.16,95.114,10.6699507]
[1773689526484,3.53437854,95.18,95.121,10.6699507]
[1773689526690,10.34524893,95.187,95.121,10.6699507]
[1773689526890,3.53437854,95.18,95.121,10.6699507]
[1773689527290,3.53437854,95.17,95.121,10.6699507]
[1773689527986,3.53437854,95.18,95.121,10.6699507]
[1773689528291,13.87962747,95.18,95.121,10.6699507]
[1773689529190,3.53437854,95.18,95.121,10.6699507]
[1773689531392,10.34524893,95.179,95.121,10.6699507]
[1773689531588,10.34524893,95.159,95.101,10.6699507]
[1773689531786,3.53437854,95.15,95.101,10.6699507]
[1773689533483,10.34524893,95.159,95.101,10.6699507]
[1773689539092,3.53437854,95.15,95.101,10.6699507]
[1773689540701,10.34524893,95.149,95.092,9.69238599]
[1773689540893,10.34524893,95.139,95.085,10.6699507]
[1773689541193,3.53437854,95.15,95.085,10.6699507]
[1773689541394,3.53437854,95.15,95.091,10.6699507]
[1773689541597,10.34524893,95.149,95.091,10.6699507]
[1773689545895,3.53437854,95.16,95.068,13.00935628]
[1773689545896,3.53437854,95.16,95.095,10.59029101]
[1773689546102,10.36466236,95.177,95.111,10.59029101]
[1773689547298,10.36466236,95.177,95.121,2.102]
[1773689547503,10.36466236,95.177,95.079,19.57216727]
[1773689547504,10.36466236,95.193,95.131,10.59029101]
[1773689547803,10.36466236,95.189,95.131,10.59029101]
[1773689548003,10.36466236,95.179,95.131,10.59029101]
[1773689549804,3.53437854,95.21,95.141,10.59029101]
[1773689550302,10.36466236,95.209,95.141,10.59029101]
[1773689551803,10.36466236,95.199,95.141,10.59029101]
[1773689552593,3.53437854,95.18,95.124,20.282677]
[1773689552794,3.53437854,95.18,95.124,10.59029101]
[1773689553493,10.36466236,95.179,95.124,10.59029101]
[1773689555494,10.36466236,95.179,95.13,3.53437854]
[1773689555703,10.36466236,95.195,95.131,10.59029101]
[1773689556305,10.36466236,95.195,95.14,3.53437854]
[1773689556506,10.36466236,95.195,95.141,10.59029101]
[1773689557001,10.36466236,95.247,95.181,10.59029101]
[1773689557202,10.36466236,95.247,95.19,3.53437854]
[1773689558206,10.36466236,95.247,95.191,9.47397242]
[1773689558401,10.36466236,95.247,95.192,9.47397242]
[1773689558606,10.36466236,95.247,95.193,9.47397242]
[1773689558806,10.36466236,95.247,95.194,9.47397242]
[1773689559003,10.36466236,95.247,95.181,10.59029101]
[1773689559004,10.36466236,95.247,95.195,9.47397242]
[1773689559204,10.36466236,95.247,95.196,9.47397242]
[1773689559408,10.36466236,95.247,95.197,9.47397242]
[1773689559606,10.36466236,95.247,95.198,9.47397242]
[1773689559808,10.36466236,95.247,95.199,9.47397242]
[1773689560109,10.36466236,95.247,95.2,9.47397242]
[1773689560303,10.36466236,95.239,95.162,10.59029101]
[1773689563506,10.36466236,95.239,95.14,33.1]
[1773689563507,10.36466236,95.239,95.164,10.59029101]
[1773689564603,10.36466236,95.239,95.16,8.4019257]
[1773689564604,10.36466236,95.239,95.177,2.101]
[1773689564813,10.36466236,95.239,95.178,10.59029101]
[1773689565808,10.36466236,95.239,95.18,10.59029101]
[1773689566208,10.36466236,95.259,95.18,10.59029101]
[1773689567410,10.36466236,95.273,95.193,10.59029101]
[1773689568001,10.36466236,95.273,95.177,33.1]
[1773689568002,10.36466236,95.29,95.201,10.59029101]
[1773689568403,10.36466236,95.306,95.201,10.59029101]
[1773689568603,10.36466236,95.341,95.229,10.59029101]
[1773689568802,10.36466236,95.339,95.241,10.59029101]
[1773689570507,10.36466236,95.337,95.241,10.59029101]
[1773689571614,10.36466236,95.337,95.231,33.08]
[1773689571615,10.36466236,95.337,95.261,10.59029101]
[1773689572909,10.8337419,95.329,95.234,10.6204155]
[1773689573616,10.8337419,95.329,95.237,10.6204155]
[1773689575414,10.6972902,95.319,95.237,10.6204155]
[1773689576510,8.4019257,95.32,95.211,10.04144252]
[1773689576511,10.6972902,95.317,95.211,10.04144252]
[1773689576914,10.6972902,95.299,95.211,10.04144252]
[1773689578519,10.6972902,95.299,95.215,10.04144252]
[1773689582617,10.6972902,95.299,95.217,10.04144252]
[1773689585417,10.6972902,95.299,95.217,12.14144252]
[1773689588214,10.6972902,95.299,95.217,10.04144252]
[1773689589814,10.6972902,95.279,95.217,10.04144252]
[1773689590014,10.54,95.345,95.142,18.918]
[1773689590015,10.6972902,95.259,95.161,10.04144252]
[1773689590215,10.6972902,95.257,95.161,10.04144252]
[1773689590620,10.6972902,95.255,95.165,10.04144252]
[1773689590818,10.6972902,95.255,95.111,9.69238599]
[1773689590819,10.6972902,95.179,95.081,10.04144252]
[1773689591626,10.6972902,95.179,95.109,10.04144252]
[1773689591925,19.09473243,95.2,95.109,10.04144252]
[1773689592620,10.6972902,95.2,95.115,10.04144252]
[1773689593624,10.6972902,95.199,95.115,10.04144252]
[1773689594114,10.6972902,95.199,95.116,2.102]
[1773689594318,10.6972902,95.199,95.102,33.06]
[1773689594319,10.6972902,95.199,95.117,10.04144252]
[1773689599826,10.6972902,95.199,95.12,10.04144252]
[1773689601131,10.6972902,95.199,95.124,10.04144252]
[1773689603123,10.6972902,95.199,95.09,8.39744223]
[1773689603124,9.77540739,95.179,95.105,9.97764973]
[1773689613130,9.77540739,95.177,95.105,9.97764973]
[1773689616039,9.77540739,95.169,95.105,9.97764973]
[1773689623644,9.77540739,95.164,95.066,9.97764973]
[1773689624542,9.77540739,95.164,95.078,2.103]
[1773689624737,9.77540739,95.164,95.079,9.97764973]
[1773689625041,3.53690549,95.14,95.081,9.97764973]
[1773689625541,3.53690549,95.14,95.081,12.08064973]
[1773689625742,3.53690549,95.15,95.081,9.97764973]
[1773689627137,3.53690549,95.15,95.09,9.97764973]
[1773689627941,3.53690549,95.14,95.09,9.97764973]
[1773689628443,3.53690549,95.12,95.09,9.97764973]
[1773689628744,3.53690549,95.11,95.066,9.97764973]
[1773689634638,3.53690549,95.13,95.081,10.37925659]
[1773689640859,3.53729823,95.13,95.081,10.37925659]
[1773689643062,3.53729823,95.12,95.081,10.37925659]
[1773689644660,3.53729823,95.13,95.081,10.37925659]
[1773689645562,3.53729823,95.12,95.081,10.37925659]
[1773689645863,10.08691283,95.129,95.081,10.37925659]
[1773689646466,3.53729823,95.14,95.081,10.37925659]
[1773689646860,3.53729823,95.13,95.081,10.37925659]
[1773689648460,3.53729823,95.14,95.081,10.37925659]
[1773689650368,10.08691283,95.119,95.071,10.66663623]
[1773689650567,18.917,95.145,95.071,10.66663623]
[1773689650568,3.53729823,95.13,95.071,10.66663623]
[1773689658672,3.53729823,95.13,95.073,10.66663623]
[1773689658869,10.08691283,95.135,95.081,10.66663623]
[1773689661967,9.70599311,95.17,95.074,9.5968654]
[1773689661968,10.08691283,95.129,95.074,9.5968654]
[1773689662172,10.08691283,95.119,95.069,9.5968654]
[1773689662367,10.08691283,95.119,95.068,9.5968654]
[1773689662578,10.08691283,95.119,95.07,10.50881113]
[1773689663077,10.08691283,95.119,95.071,10.50881113]
[1773689664975,10.08691283,95.119,95.072,10.50881113]
[1773689670777,10.08691283,95.119,95.069,0.10567653]
[1773689670973,10.08691283,95.119,95.06,3.53729823]
[1773689672379,3.53729823,95.11,95.06,3.53729823]
[1773689672685,10.62914229,95.109,95.058,33.12]
[1773689673778,10.62914229,95.109,95.059,10.50881113]
[1773689676383,3.53729823,95.1,95.059,10.50881113]
[1773689676581,10.62914229,95.089,95.049,33.12]
[1773689676782,10.62914229,95.089,95.049,43.62881113]
[1773689676982,10.62914229,95.089,95.05,10.50881113]
[1773689677182,14.16644052,95.1,95.05,10.50881113]
[1773689677382,10.62914229,95.099,95.05,10.50881113]
[1773689679281,10.62914229,95.116,95.06,3.53729823]
[1773689679481,10.62914229,95.133,95.071,10.50881113]
[1773689679687,10.62914229,95.133,95.073,10.50881113]
[1773689681286,10.62914229,95.129,95.073,10.50881113]
[1773689681492,18.912,95.169,95.073,10.50881113]
[1773689681493,10.62914229,95.119,95.073,10.50881113]
[1773689681692,3.53729823,95.13,95.073,10.50881113]
[1773689682692,10.62914229,95.135,95.073,10.50881113]
[1773689682993,10.62914229,95.135,95.075,10.50881113]
[1773689683592,10.62914229,95.135,95.074,33.12]
[1773689683593,3.53729823,95.14,95.081,10.50881113]
[1773689684291,10.62914229,95.149,95.074,33.12]
[1773689684292,10.62914229,95.149,95.091,10.50881113]
[1773689685190,3.53729823,95.14,95.091,10.50881113]
[1773689686095,10.62914229,95.139,95.091,10.50881113]
[1773689689698,3.53729823,95.13,95.091,10.50881113]
[1773689694995,13.69613192,95.13,95.091,10.50881113]
[1773689695302,10.74574035,95.129,95.076,10.19829124]
[1773689697196,3.53729823,95.14,95.081,10.19829124]
[1773689697502,3.53729823,95.14,95.043,19.57216727]
[1773689697503,3.53729823,95.11,95.058,10.19829124]
[1773689697695,10.74574035,95.129,95.058,10.19829124]
[1773689697696,3.53729823,95.12,95.058,10.19829124]
[1773689697895,10.74574035,95.119,95.058,10.19829124]
[1773689699703,3.53729823,95.11,95.058,10.19829124]
[1773689700799,10.74574035,95.133,95.071,10.19829124]
[1773689702204,10.74574035,95.133,95.08,3.53729823]
[1773689702406,10.74574035,95.133,95.081,10.19829124]
[1773689703307,3.53704991,95.1,95.049,10.19829124]
[1773689704609,3.53704991,95.11,95.049,10.19829124]
[1773689704912,10.74574035,95.109,95.049,10.19829124]
[1773689705607,10.74574035,95.109,95.04,3.53704991]
[1773689705608,3.53704991,95.1,95.04,3.53704991]
[1773689705913,3.53704991,95.08,95.035,10.19829124]
[1773689706109,10.74574035,95.086,95.035,10.19829124]
[1773689706309,3.53704991,95.09,95.035,10.19829124]
[1773689706510,14.28279026,95.1,95.035,10.19829124]
[1773689706709,10.74574035,95.099,95.035,10.19829124]
[1773689706907,18.919,95.137,95.019,33.12]
[1773689706908,10.74574035,95.105,95.041,10.19829124]
[1773689707107,10.74574035,95.105,95.051,10.19829124]
[1773689707308,10.74574035,95.119,95.051,10.19829124]
[1773689707507,3.53704991,95.13,95.071,10.19829124]
[1773689709516,3.53704991,95.12,95.071,10.19829124]
[1773689714914,10.74574035,95.129,95.071,10.19829124]
[1773689717021,3.53704991,95.12,95.071,10.19829124]
[1773689717221,10.74574035,95.129,95.071,10.19829124]
[1773689721622,33.12,95.169,95.061,33.12]
[1773689721623,3.53704991,95.1,95.061,15.52324482]
[1773689725131,18.921,95.128,95.061,15.52324482]
[1773689725332,3.53704991,95.1,95.061,15.52324482]
[1773689726326,3.53704991,95.09,95.021,15.45544123]
[1773689726928,3.53704991,95.09,95.031,15.47109508]
[1773689727130,18.921,95.128,95.018,33.12]
[1773689727131,3.53704991,95.1,95.041,15.47109508]
[1773689727328,3.53704991,95.09,95.041,15.47109508]
[1773689728333,3.53704991,95.09,94.99,19.57216727]
[1773689728334,3.53704991,95.11,95.051,15.48790131]
[1773689729527,3.53704991,95.1,95.051,15.48790131]
[1773689730730,3.53704991,95.09,95.051,15.48790131]
[1773689730931,3.53704991,95.08,95.029,15.28301082]
[1773689731329,3.53704991,95.09,95.029,15.28301082]
[1773689733034,3.53704991,95.08,95.029,15.28301082]
[1773689735536,3.53704991,95.09,95.029,15.28301082]
[1773689736533,3.53704991,95.08,95.029,15.28301082]
[1773689737328,18.924,95.109,95.023,33.12]
[1773689737329,3.53704991,95.1,95.041,15.23098232]
[1773689739036,3.53704991,95.11,95.041,15.23098232]
[1773689739339,3.53704991,95.11,95.051,15.24188304]
[1773689739539,179.98195008,95.133,95.061,15.23949902]
[1773689739839,179.98195008,95.133,95.071,15.23949902]
[1773689740032,3.53704991,95.12,95.071,15.23949902]
[1773689740433,3.53704991,95.13,95.071,15.23949902]
[1773689742143,18.92,95.129,95.054,9.70355804]
[1773689742443,3.53704991,95.06,94.997,12.94524215]
[1773689742637,3.53704991,95.06,94.996,33.12]
[1773689744440,3.53704991,95.06,94.997,9.81950428]
[1773689745041,3.53704991,95.06,95.001,9.81950428]
[1773689745233,7.73356154,95.049,95.001,9.81950428]
[1773689745437,3.53704991,95.03,94.987,9.81950428]
[1773689748843,3.53704991,95.02,94.987,9.81950428]
[1773689749343,3.53704991,95.02,94.961,9.81950428]
[1773689755552,3.53704991,95.04,94.971,10.35681942]
[1773689755749,8.0200249,95.059,94.991,10.35681942]
[1773689756049,8.0200249,95.059,95.0,3.53704991]
[1773689756250,3.53704991,95.09,95.021,10.35681942]
[1773689756453,3.53704991,95.1,95.031,10.35681942]
[1773689756752,3.53704991,95.08,95.031,10.35681942]
[1773689757954,3.53704991,95.07,95.028,33.14]
[1773689758454,3.53704991,95.07,95.028,28.14]
[1773689758654,3.53704991,95.06,95.015,10.35681942]
[1773689760746,8.15703945,95.065,95.015,10.35681942]
[1773689760954,3.53704991,95.09,95.031,10.35681942]
[1773689761159,3.53704991,95.07,95.01,3.53704991]
[1773689761457,3.53704991,95.07,95.011,10.35681942]
[1773689762556,8.23426097,95.069,95.011,10.35681942]
[1773689762753,3.54291856,95.06,95.011,10.35681942]
[1773689762957,8.23426097,95.069,95.011,10.35681942]
[1773689763152,3.54291856,95.08,95.02,3.54291856]
[1773689763359,3.54291856,95.08,95.021,10.35681942]
[1773689763560,3.54291856,95.1,95.031,10.35681942]
[1773689763762,3.54291856,95.1,95.04,3.54291856]
[1773689764059,179.98195008,95.133,95.06,3.54291856]
[1773689764060,8.30946745,95.119,95.06,3.54291856]
[1773689764263,8.30946745,95.119,95.061,10.35681942]
[1773689766861,3.54291856,95.11,95.061,10.35681942]
[1773689767056,3.54291856,95.11,95.05,3.54291856]
[1773689767057,3.54291856,95.1,95.042,10.35681942]
[1773689767258,3.54291856,95.09,95.042,10.35681942]
[1773689767758,3.54291856,95.11,95.05,3.54291856]
[1773689767953,3.54291856,95.11,95.051,10.35681942]
[1773689769763,3.54291856,95.1,95.051,10.35681942]
[1773689769965,3.54291856,95.09,95.031,10.35681942]
[1773689770166,3.54291856,95.08,95.031,10.35681942]
[1773689772869,3.54291856,95.09,95.031,10.35681942]
[1773689774873,8.67333908,95.099,95.031,10.35681942]
[1773689776170,8.8821208,95.115,95.031,10.35681942]
[1773689777777,8.73144715,95.107,95.031,10.35681942]
[1773689778679,8.74984197,95.101,95.031,10.35681942]
[1773689781279,8.81617998,95.099,95.031,10.35681942]
[1773689783180,8.73738811,95.096,94.986,12.87011975]
[1773689783379,8.73738811,95.096,94.98,8.43028115]
[1773689783380,8.73738811,95.089,94.995,11.50201866]
[1773689784577,8.92198522,95.085,94.995,11.50201866]
[1773689789789,9.00010298,95.099,95.001,11.50201866]
[1773689790088,9.00010298,95.099,95.003,11.50201866]
[1773689791591,8.92824957,95.095,95.003,11.50201866]
[1773689791886,8.92824957,95.089,95.005,11.50201866]
[1773689794791,3.54271255,95.06,95.005,11.50201866]
[1773689795788,8.94896828,95.069,95.005,11.50201866]
[1773689796596,3.54271255,95.06,95.005,11.50201866]
[1773689804205,3.54271255,95.08,95.021,11.50201866]
[1773689804704,3.54271255,95.07,95.021,11.50201866]
[1773689804905,3.54271255,95.06,95.021,11.50201866]
[1773689805705,3.54271255,95.05,95.021,11.50201866]
[1773689805906,3.54271255,95.05,95.005,11.50201866]
[1773689806101,3.54271255,95.04,95.005,11.50201866]
[1773689806308,3.54271255,95.06,95.005,11.50201866]
[1773689807809,13.01752546,95.06,95.005,11.50201866]
[1773689809108,3.54271255,95.05,95.005,11.50201866]
[1773689811208,3.54271255,95.04,95.005,11.50201866]
[1773689811907,3.54271255,95.03,94.991,11.50201866]
[1773689815106,9.38001625,95.047,94.991,11.50201866]
[1773689815308,3.54271255,95.04,94.991,11.50201866]
[1773689815610,3.54271255,95.06,94.991,11.50201866]
[1773689815810,3.54271255,95.06,95.0,3.54271255]
[1773689816007,3.54271255,95.07,95.01,3.54271255]
[1773689816206,3.54271255,95.04,95.011,11.15535401]
[1773689816406,3.54271255,95.05,95.011,11.15535401]
[1773689817010,13.13950292,95.07,95.011,11.15535401]
[1773689820519,3.54271255,95.06,95.011,11.15535401]
[1773689820913,3.54271255,95.05,95.011,11.15535401]
[1773689821216,9.43007339,95.059,95.011,11.15535401]
[1773689824510,3.54271255,95.07,95.011,11.15535401]
[1773689824713,11.28893286,95.149,95.061,11.15535401]
[1773689825019,3.5367544,95.13,95.071,11.15535401]
[1773689825315,3.5367544,95.12,95.071,11.15535401]
[1773689825613,3.5367544,95.12,95.05,3.5367544]
[1773689825614,14.82568726,95.11,95.048,11.15535401]
[1773689825813,11.28893286,95.109,95.049,33.14]
[1773689826010,11.28893286,95.109,95.05,11.15535401]
[1773689826920,3.5367544,95.11,95.053,11.15535401]
[1773689827121,11.28893286,95.145,95.081,11.15535401]
[1773689827419,11.28893286,95.145,95.091,11.15535401]
[1773689829218,11.28893286,95.145,95.073,11.15535401]
[1773689829425,11.28893286,95.145,95.074,33.12]
[1773689829922,11.28893286,95.145,95.074,44.27535401]
[1773689830417,11.28893286,95.145,95.079,11.15535401]
[1773689830620,11.28893286,95.179,95.079,11.15535401]
[1773689831017,11.28893286,95.179,95.094,2.103]
[1773689831226,11.28893286,95.179,95.095,11.15535401]
[1773689831925,6.28893286,95.179,95.095,11.15535401]
[1773689838725,6.28893286,95.179,95.078,11.15535401]
[1773689839334,6.28893286,95.179,95.082,11.15535401]
[1773689840232,8.41906323,95.18,95.082,11.15535401]
[1773689840233,11.28893286,95.177,95.082,11.15535401]
[1773689841533,11.28893286,95.175,95.082,11.15535401]
[1773689843436,11.30267337,95.173,95.082,11.15535401]
[1773689847938,11.30267337,95.169,95.082,11.15535401]
[1773689848137,11.30267337,95.167,95.082,11.15535401]
[1773689848337,11.30267337,95.139,95.067,11.50847111]
[1773689849234,33.12,95.168,95.067,11.50847111]
[1773689849435,11.30267337,95.167,95.067,11.50847111]
[1773689850742,3.53584573,95.16,95.091,11.50847111]
[1773689851039,3.53584573,95.15,95.091,11.50847111]
[1773689852040,3.53584573,95.14,95.091,11.50847111]
[1773689853232,11.30267337,95.139,95.091,11.50847111]
[1773689853442,3.53584573,95.12,95.061,11.50847111]
[1773689853739,3.53584573,95.13,95.061,11.50847111]
[1773689854945,11.30267337,95.139,95.061,11.50847111]
[1773689867250,11.30267337,95.139,95.062,11.50847111]
[1773689868145,11.30267337,95.139,95.065,9.66210911]